Workbook

Sheet 入力シート
B2: =IF(G4=1,"CRC版疲労計算(入力画面)","JPC版疲労計算(入力画面)") -> JPC版疲労計算(入力画面) | I2: =IF(G4=1,"[W="&G8&"mm]","[W="&G8&"mm,L="&G9&"mm]") -> [W=4000mm,L=5000mm] | M2: ※白色セルにデータ入力してください。【入力方法は、手入力またはコピー・貼り付けでお願いします。切り取り、移動はNGです。】
F4: コンクリート版の種類 | G4: 2 | I4: 設計期間 | J4: 10 | K4: 年
G5: 1 ：CRC版 | I5: 破壊確率 | J5: 37 | K5: ％
G6: 2 ：JPC版 | M6: 走行位置頻度（左輪） | R6: 左輪走行位置 (自由縁部からの走行位置)
F7: コンクリート版の寸法 | I7: 疲労曲線 | J7: 1 | S7: 1 | T7: 2 | U7: 3 | V7: 4 | W7: 5 | X7: 6 | Y7: 7 | Z7: 8 | AA7: 9 | AB7: 10 | AC7: 11 | AD7: 12 | AE7: 13 | AF7: 14 | AG7: 15 | AH7: 16 | AI7: 17 | AJ7: 18 | AK7: 19 | AL7: 20 | AM7: 21 | AN7: 22 | AO7: 23 | AP7: 24 | AQ7: 25
B8: 着目点 | C8: 疲労度 | D8: 応力比１を | F8: 幅員方向 | G8: 4000 | H8: mm | J8: 1 ：舗装示方書2014 | M8: 車線幅員(計算上の車線幅） | O8: =O9-W24+W30 -> 3700 | P8: mm | R8: 走行位置(mm) | S8: 500 | T8: 600 | U8: 700 | V8: 800 | W8: 900 | X8: 1000 | Y8: 1100 | Z8: 1200 | AA8: 1300 | AB8: 1400 | AC8: 1500 | AD8: 1600 | AE8: 1700 | AF8: 1800 | AG8: 1900
D9: 超えた箇所数 | F9: =IF(G4=1,"走行方向(入力なし)","走行方向") -> 走行方向 | G9: 5000 | H9: mm←JPCの場合は目地間隔 | M9: コンクリート版の幅 | O9: =G8 -> 4000 | P9: mm
A10: 1 | B10: 500 | C10: 0.03348392446 | D10: OK | M10: 路肩の幅 | O10: 1750 | P10: mm
A11: 2 | B11: 600 | C11: 0.04945001215 | D11: OK | F11: コンクリート版厚 | G11: 290 | H11: mm | M11: 走行中心位置（中央線から） | O11: =0.65*O8-460 -> 1945 | P11: mm
A12: 3 | B12: 700 | C12: 0.06734305858 | D12: OK | M12: 外側線からの走行中心位置 | O12: =O8-O11 -> 1755 | P12: mm
A13: 4 | B13: 800 | C13: 0.0899001917 | D13: OK | F13: コンクリート版幅 | G13: =IF(G4=1,G8,G9) -> 5000 | H13: mm | M13: 自由縁部からの走行中心位置 | O13: =O12+(O9-O8) -> 2055 | P13: mm 修正値 | R13: 右輪走行位置 (自由縁部からの走行位置)
A14: 5 | B14: 900 | C14: 0.1150003026 | D14: OK | F14: （そり拘束係数選定用） | M14: 自由縁から左車輪走行最頻位置 | O14: =O9-O11-O16/2 -> 1155 | P14: 1200 | Q14: mm | S14: 26 | T14: 27 | U14: 28 | V14: 29 | W14: 30 | X14: 31 | Y14: 32 | Z14: 33 | AA14: 34 | AB14: 35 | AC14: 36 | AD14: 37 | AE14: 38 | AF14: 39 | AG14: 40 | AH14: 41 | AI14: 42 | AJ14: 43 | AK14: 44 | AL14: 45 | AM14: 46 | AN14: 47 | AO14: 48 | AP14: 49 | AQ14: 50
A15: 6 | B15: 1000 | C15: 0.1387227038 | D15: OK | M15: 標準偏差 | O15: =O10*0.04+230 -> 300 | P15: mm | R15: 走行位置(mm) | S15: =IF(S8="",NA(),S8+$O16) -> 2300 | T15: 2400 | U15: 2500 | V15: 2600 | W15: 2700 | X15: 2800 | Y15: 2900 | Z15: 3000 | AA15: 3100 | AB15: 3200 | AC15: 3300 | AD15: 3400 | AE15: =IF(AE8="",NA(),AE8+$O16) -> 3500 | AF15: 3600 | AG15: 3700
A16: 7 | B16: 1100 | C16: 0.1558871985 | D16: OK | F16: 温度差の発生頻度 | G16: 1 | M16: トレッド | O16: 1800 | P16: mm
A17: 8 | B17: 1200 | C17: 0.1617628298 | D17: OK | G17: 1：温度差の大きいところ | M17: 側帯の幅 | O17: 500 | P17: mm
A18: 9 | B18: 1300 | C18: 0.1549547183 | D18: OK | G18: 2：温度差の小さいところ
A19: 10 | B19: 1400 | C19: 0.1357323365 | D19: OK | M19: 荷重および頻度（輪数）
A20: 11 | B20: 1500 | C20: 0.1085129782 | D20: OK | F20: ヤング係数 E | G20: 30000 | H20: MPa
A21: 12 | B21: 1600 | C21: 0.07915251647 | D21: OK | F21: ポアソン比 ν | G21: 0.2 | M21: 荷重 F (KN) | N21: 1日頻度（輪数） | O21: 設計輪数 | V21: 路肩 | AA21: 車線幅員(計算上の車線幅） | AB21: =O8 -> 3700 | AF21: 中央線
A22: 13 | B22: 1700 | C22: 0.05293343147 | D22: OK | F22: 設計基準曲げ強度fbk | G22: 4.5 | H22: MPa | M22: 9.8 | N22: 9998 | O22: =$J$4*365*N22 -> 36492700 | S22: =IF(G4=1,"CRC版","NC版") -> NC版 | V22: =O10 -> 1750 | AA22: 車線幅員 | AB22: =AB21-W30 -> 3500
A23: 14 | B23: 1800 | C23: 0.03284647147 | D23: OK | F23: 設計曲げ強度 fbd,h | G23: =0.43*(1+7.04/G11^(1/3))*G22 -> 3.993042296 | H23: MPa | M23: 19.6 | N23: 2418 | O23: =$J$4*365*N23 -> 8825700 | W23: 側帯
A24: 15 | B24: 1900 | C24: 0.01834617549 | D24: OK | F24: 寸法効果式 | G24: 1 | M24: 29.4 | N24: 1802 | O24: 6577300 | V24: =V22-W24 -> 1250 | W24: =O17 -> 500 | X24: 車輪走行最頻位置 | AC24: 走行中心位置 | AD24: =O11 -> 1945 | AG24: 頻度合計
A25: 16 | C25: 0 | D25: OK | G25: 1 ：舗装示方書2014 | M25: 39.2 | N25: 980 | O25: 3577000 | Q25: =IF(G4=1,"***",G9) -> 5000 | S25: NC版応力計算位置 | X25: =P14 -> 1200 | Z25: トレッド | AA25: =O16 -> 1800 | AG25: =BO66 -> 1.000000009
A26: 17 | C26: 0 | D26: OK | M26: 49 | N26: 505 | O26: 1843250 | Q26: mm | AD26: =AA34-AE26 -> 3850 | AE26: 150 | AG26: 頻度％合計
A27: 18 | C27: 0 | D27: OK | M27: 58.8 | N27: 329 | O27: 1200850 | AG27: =AG25*100 -> 100.0000009
A28: 19 | C28: 0 | D28: OK | F28: 応力低減係数 | G28: 1 | H28: ←CRCPは0.65 | M28: 68.6 | N28: 182 | O28: 664300 | Y28: 左輪 | AB28: 右輪
A29: 20 | C29: 0 | D29: OK | F29: 係数C | G29: 2.12 | M29: 78.4 | N29: 81 | O29: 295650 | S29: 左輪走行位置 | W29: =W24-W30 -> 300
A30: 21 | C30: 0 | D30: OK | F30: 熱膨張率 α | G30: 1e-05 | H30: 1/℃ | M30: 88.2 | N30: 36 | O30: 131400 | S30: タイヤ：幅300mm×長さ233mm | W30: 200
A31: 22 | C31: 0 | D31: OK | F31: 路盤反力係数 k | G31: 0.1 | H31: GPa/m | M31: 98 | N31: 19 | O31: 69350 | S31: CRC版応力計算位置
A32: 23 | C32: 0 | D32: OK | F32: 剛比半径 ℓ | G32: =(G20*G11^3/12/(1-G21^2)/G31)^0.25 -> 892.7208793 | H32: mm | M32: 117.6 | N32: 0 | O32: 0 | V32: 自由縁部
A33: 24 | C33: 0 | D33: OK | F33: タイヤ接地圧 ｐ | G33: 0.7 | H33: MPa | M33: 137.2 | N33: 0 | O33: 0 | S33: 幅員方向 | AA33: コンクリート版の幅
A34: 25 | C34: 0 | D34: OK | F34: 荷重応力計算法 | G34: 1 | M34: 156.8 | N34: 0 | O34: 0 | S34: =G8 -> 4000 | T34: mm | AA34: =O9 -> 4000
M36: 温度差正、負での頻度（率）
F37: 温度応力比 （基準応力に対する比率） | Q37: 着目点の各走行位置における荷重応力比 （基準応力に対する応力比）
F38: 入力点数は、２０点以上５０点以下 | M38: 温度差正 | N38: 0.6 | R38: 1 | S38: 2 | T38: 3 | U38: 4 | V38: 5 | W38: 6 | X38: 7 | Y38: 8 | Z38: 9 | AA38: 10 | AB38: 11 | AC38: 12 | AD38: 13 | AE38: 14 | AF38: 15 | AG38: 16 | AH38: 17 | AI38: 18 | AJ38: 19 | AK38: 20 | AL38: 21 | AM38: 22 | AN38: 23 | AO38: 24 | AP38: 25 | AQ38: 26 | AR38: 27 | AS38: 28 | AT38: 29 | AU38: 30 | AV38: 31 | AW38: 32 | AX38: 33 | AY38: 34 | AZ38: 35 | BA38: 36 | BB38: 37 | BC38: 38 | BD38: 39 | BE38: 40 | BF38: 41 | BG38: 42 | BH38: 43 | BI38: 44 | BJ38: 45 | BK38: 46 | BL38: 47 | BM38: 48 | BN38: 49 | BO38: 50
G39: 温度応力比 | M39: 温度差負 | N39: =1-N38 -> 0.4 | P39: 着目点(mm) 入力 | Q39: 左輪走行位置(mm) | AP39: 右輪走行位置(mm)
F40: 位置(mm) | G40: 温度差正 | H40: 温度差負 | Q40: =IF(S8="","",S8) -> 500 | R40: 600 | S40: 700 | T40: 800 | U40: 900 | V40: 1000 | W40: 1100 | X40: 1200 | Y40: 1300 | Z40: 1400 | AA40: =IF(AC8="","",AC8) -> 1500 | AB40: =IF(AD8="","",AD8) -> 1600 | AC40: =IF(AE8="","",AE8) -> 1700 | AD40: =IF(AF8="","",AF8) -> 1800 | AE40: 1900 | AP40: =IFERROR(S15,"") -> 2300 | AQ40: 2400 | AR40: 2500 | AS40: 2600 | AT40: 2700 | AU40: 2800 | AV40: 2900 | AW40: 3000 | AX40: 3100 | AY40: 3200 | AZ40: 3300 | BA40: 3400 | BB40: 3500 | BC40: 3600 | BD40: 3700
E41: 1 | F41: 0 | G41: 1 | H41: 1 | O41: 1 | P41: 500 | Q41: 0.6402576098 | R41: 0.598280576 | S41: 0.4942645361 | T41: 0.4006257974 | U41: 0.3324260283 | V41: 0.2801202989 | W41: 0.2383012334 | X41: 0.2039127529 | Y41: 0.1753265691 | Z41: 0.1512121028 | AA41: 0.1306154687 | AB41: 0.113226806 | AC41: 0.09820159183 | AD41: 0.08545476639 | AE41: 0.07447597059 | AP41: 0.04505923811 | AQ41: 0.0405814448 | AR41: 0.03694574397 | AS41: 0.03396925694 | AT41: 0.0315827207 | AU41: 0.02983717115 | AV41: 0.0284069506 | AW41: 0.02742876238 | AX41: 0.02671061425 | AY41: 0.02581141017 | AZ41: 0.02511938757 | BA41: 0.02365210523 | BB41: 0.0220250319 | BC41: 0.02004070721 | BD41: 0.01739595358
E42: 2 | F42: 100 | G42: 0.9993339993 | H42: 1 | O42: 2 | P42: 600 | Q42: 0.5797253782 | R42: 0.6155294975 | S42: 0.5769670089 | T42: 0.4763351358 | U42: 0.3854061608 | V42: 0.3196427486 | W42: 0.26928732 | X42: 0.2289871803 | Y42: 0.1960811714 | Z42: 0.1686493712 | AA42: 0.1454219576 | AB42: 0.1259067987 | AC42: 0.109131782 | AD42: 0.09487818215 | AE42: 0.08264171578 | AP42: 0.04957895376 | AQ42: 0.04442432712 | AR42: 0.0402108269 | AS42: 0.03673552464 | AT42: 0.03393158758 | AU42: 0.03184944407 | AV42: 0.03017984082 | AW42: 0.02902181177 | AX42: 0.0281572392 | AY42: 0.02715474816 | AZ42: 0.02637037487 | BA42: 0.02483322195 | BB42: 0.02317941552 | BC42: 0.02109484173 | BD42: 0.01842821557
E43: 3 | F43: 200 | G43: 1.000999001 | H43: 1.002828854 | O43: 3 | P43: 700 | Q43: 0.469348077 | R43: 0.5597484659 | S43: 0.5980375478 | T43: 0.5621787472 | U43: 0.4636733702 | V43: 0.3747372258 | W43: 0.3105534966 | X43: 0.26142536 | Y43: 0.2223464366 | Z43: 0.1903700103 | AA43: 0.1636672945 | AB43: 0.1413876906 | AC43: 0.1223464366 | AD43: 0.1062336715 | AE43: 0.09241144662 | AP43: 0.05492618021 | AQ43: 0.04898353484 | AR43: 0.04408104988 | AS43: 0.04001518926 | AT43: 0.03669846285 | AU43: 0.03420074124 | AV43: 0.03221216356 | AW43: 0.03082872593 | AX43: 0.02979038824 | AY43: 0.02866152257 | AZ43: 0.02776596391 | BA43: 0.02615104198 | BB43: 0.02443830123 | BC43: 0.022280819 | BD43: 0.01954857525
E44: 4 | F44: 300 | G44: 1.003663004 | H44: 1.007072136 | O44: 4 | P44: 800 | Q44: 0.3799562549 | R44: 0.4531806307 | S44: 0.5453672763 | T44: 0.58583146 | U44: 0.5516860077 | V44: 0.4548028434 | W44: 0.3671668996 | X44: 0.3039370557 | Y44: 0.2557992588 | Z44: 0.2175041011 | AA44: 0.1861048666 | AB44: 0.1602223707 | AC44: 0.1382951577 | AD44: 0.1198553983 | AE44: 0.1040889483 | AP44: 0.061261316 | AQ44: 0.05438301233 | AR44: 0.04867245884 | AS44: 0.04389695607 | AT44: 0.03997691233 | AU44: 0.03697429978 | AV44: 0.03457804241 | AW44: 0.03289264232 | AX44: 0.03164530044 | AY44: 0.03036575734 | AZ44: 0.02934443162 | BA44: 0.02764019685 | BB44: 0.02583692812 | BC44: 0.02360167689 | BD44: 0.02083115621
E45: 5 | F45: 400 | G45: 1.007326007 | H45: 1.013437058 | O45: 5 | P45: 900 | Q45: 0.3146424449 | R45: 0.3668995686 | S45: 0.4413816149 | T45: 0.5353119874 | U45: 0.5771432043 | V45: 0.5443040282 | W45: 0.4485084148 | X45: 0.3616076311 | Y45: 0.2991858558 | Z45: 0.2516738562 | AA45: 0.2138586791 | AB45: 0.1831642263 | AC45: 0.1575612127 | AD45: 0.1361625858 | AE45: 0.1179840817 | AP45: 0.06874050671 | AQ45: 0.06077525974 | AR45: 0.05410292241 | AS45: 0.04850841485 | AT45: 0.04386414728 | AU45: 0.04025882496 | AV45: 0.03736192964 | AW45: 0.03527674828 | AX45: 0.03376086032 | AY45: 0.03229357798 | AZ45: 0.03112096725 | BA45: 0.02930129412 | BB45: 0.02741114284 | BC45: 0.02505802297 | BD45: 0.02221823926
E46: 6 | F46: 500 | G46: 1.011322011 | H46: 1.020509194 | O46: 6 | P46: 1000 | Q46: 0.2642444863 | R46: 0.3040403427 | S46: 0.357166292 | T46: 0.4331247342 | U46: 0.5281244304 | V46: 0.571006744 | W46: 0.5391032262 | X46: 0.4439030318 | Y46: 0.357615894 | Z46: 0.295740932 | AA46: 0.2485752476 | AB46: 0.2113676408 | AC46: 0.1808858375 | AD46: 0.1557385017 | AE46: 0.1345464488 | AP46: 0.07755027644 | AQ46: 0.06830913178 | AR46: 0.06051157421 | AS46: 0.05396075096 | AT46: 0.04847317577 | AU46: 0.04415456589 | AV46: 0.04064888511 | AW46: 0.03806671122 | AX46: 0.03618871134 | AY46: 0.03448994471 | AZ46: 0.03313506288 | BA46: 0.03117139559 | BB46: 0.02916094538 | BC46: 0.02670696883 | BD46: 0.02379427669
E47: 7 | F47: 600 | G47: 1.015318015 | H47: 1.032531825 | O47: 7 | P47: 1100 | Q47: 0.2241387691 | R47: 0.2556838204 | S47: 0.2960750957 | T47: 0.3503918829 | U47: 0.4271826964 | V47: 0.5230390668 | W47: 0.5667416003 | X47: 0.5352816088 | Y47: 0.4405431679 | Z47: 0.3547420864 | AA47: 0.2930980011 | AB47: 0.2465095085 | AC47: 0.2094355672 | AD47: 0.1793669117 | AE47: 0.1543836199 | AP47: 0.08795188043 | AQ47: 0.07716750714 | AR47: 0.06807217935 | AS47: 0.06039978127 | AT47: 0.05392794216 | AU47: 0.04876845495 | AV47: 0.04454037305 | AW47: 0.04135670454 | AX47: 0.03900601495 | AY47: 0.03699921016 | AZ47: 0.03542499544 | BA47: 0.03328817061 | BB47: 0.03114709278 | BC47: 0.02855155234 | BD47: 0.02552099155
E48: 8 | F48: 700 | G48: 1.018648019 | H48: 1.044554455 | O48: 8 | P48: 1200 | Q48: 0.1915122425 | R48: 0.2171760131 | S48: 0.2491220609 | T48: 0.2904854487 | U48: 0.3454827146 | V48: 0.4229783097 | W48: 0.5195455374 | X48: 0.5635640075 | Y48: 0.5324989368 | Z48: 0.4381675679 | AA48: 0.3525123033 | AB48: 0.2913907285 | AC48: 0.2448508415 | AD48: 0.2081657452 | AE48: 0.1781882253 | AP48: 0.1001701197 | AQ48: 0.08759341394 | AR48: 0.07697916034 | AS48: 0.06799319521 | AT48: 0.06037001033 | AU48: 0.05423172732 | AV48: 0.04915790753 | AW48: 0.04524454706 | AX48: 0.04231302023 | AY48: 0.0398833465 | AZ48: 0.03803207971 | BA48: 0.03569354153 | BB48: 0.03339084999 | BC48: 0.03063430342 | BD48: 0.02749316483
E49: 9 | F49: 800 | G49: 1.021978022 | H49: 1.058698727 | O49: 9 | P49: 1300 | Q49: 0.1646151042 | R49: 0.1858375357 | S49: 0.2117382587 | T49: 0.2445106021 | U49: 0.2864511817 | V49: 0.3420134881 | W49: 0.4201166535 | X49: 0.5169208336 | Y49: 0.5612795431 | Z49: 0.530487879 | AA49: 0.4362962513 | AB49: 0.3511148915 | AC49: 0.2899993924 | AD49: 0.243836199 | AE49: 0.207187557 | AP49: 0.1145999149 | AQ49: 0.09989063734 | AR49: 0.08744759706 | AS49: 0.07692447901 | AT49: 0.0679688924 | AU49: 0.06067804848 | AV49: 0.05461814205 | AW49: 0.04984932256 | AX49: 0.04621119145 | AY49: 0.04323409685 | AZ49: 0.04101646516 | BA49: 0.03843003828 | BB49: 0.03594143022 | BC49: 0.03301294125 | BD49: 0.02971565709
E50: 10 | F50: 900 | G50: 1.024975025 | H50: 1.071428571 | O50: 10 | P50: 1400 | Q50: 0.1423051218 | R50: 0.1600218725 | S50: 0.1813415153 | T50: 0.2079530956 | U50: 0.2411264354 | V50: 0.2835834498 | W50: 0.3396743423 | X50: 0.4179597788 | Y50: 0.5150677441 | Z50: 0.5596269518 | AA50: 0.5289324989 | AB50: 0.4351236406 | AC50: 0.3499544322 | AD50: 0.2891609454 | AE50: 0.2430038277 | AP50: 0.1316483383 | AQ50: 0.1143447354 | AR50: 0.09977519898 | AS50: 0.08742329425 | AT50: 0.07692447901 | AU50: 0.06827875327 | AV50: 0.0610729692 | AW50: 0.05529983596 | AX50: 0.0508190048 | AY50: 0.04716325415 | AZ50: 0.04444862993 | BA50: 0.04155416489 | BB50: 0.03883407254 | BC50: 0.03569961723 | BD50: 0.03222917553
E51: 11 | F51: 1000 | G51: 1.027639028 | H51: 1.083451202 | O51: 11 | P51: 1500 | Q51: 0.1236770156 | R51: 0.1385564129 | S51: 0.1562610122 | T51: 0.1781821496 | U51: 0.2051035907 | V51: 0.2387629868 | W51: 0.2816453004 | X51: 0.3379123884 | Y51: 0.4164104745 | Z51: 0.5137007109 | AA51: 0.5583267513 | AB51: 0.528008992 | AC51: 0.4341636794 | AD51: 0.3492861049 | AE51: 0.2884743909 | AP51: 0.1519168844 | AQ51: 0.1314478401 | AR51: 0.1142900541 | AS51: 0.09979342609 | AT51: 0.08743544565 | AU51: 0.07724041558 | AV51: 0.06868582538 | AW51: 0.06175344796 | AX51: 0.0562695182 | AY51: 0.05179658545 | AZ51: 0.04844158211 | BA51: 0.04513032383 | BB51: 0.04213014156 | BC51: 0.03876298682 | BD51: 0.03509751504
E52: 12 | F52: 1100 | G52: 1.02997003 | H52: 1.096181047 | O52: 12 | P52: 1600 | Q52: 0.1080563825 | R52: 0.1205844827 | S52: 0.1353727444 | T52: 0.1536059299 | U52: 0.175757944 | V52: 0.2031229115 | W52: 0.2371711526 | X52: 0.2801992831 | Y52: 0.3366061122 | Z52: 0.4153168479 | AA52: 0.5126070843 | AB52: 0.5575855155 | AC52: 0.5272252263 | AD52: 0.4336715475 | AE52: 0.3487332159 | AP52: 0.1761589404 | AQ52: 0.1517528404 | AR52: 0.1314356887 | AS52: 0.1143508111 | AT52: 0.09982380461 | AU52: 0.08779391215 | AV52: 0.0776596391 | AW52: 0.06935415274 | AX52: 0.06271340908 | AY52: 0.05726411082 | AZ52: 0.05312473419 | BA52: 0.04924965065 | BB52: 0.04590315329 | BC52: 0.04224922535 | BD52: 0.03836077526
E53: 13 | F53: 1200 | G53: 1.031968032 | H53: 1.108203678 | O53: 13 | P53: 1700 | Q53: 0.09494501489 | R53: 0.1055167386 | S53: 0.1178504162 | T53: 0.1331065071 | U53: 0.1515219637 | V53: 0.1740932013 | W53: 0.2018166353 | X53: 0.2359681633 | Y53: 0.2791178079 | Z53: 0.3357372866 | AA53: 0.4144419467 | AB53: 0.5120359682 | AC53: 0.5569597181 | AD53: 0.5268546084 | AE53: 0.4332037183 | AP53: 0.20552889 | AQ53: 0.1760374263 | AR53: 0.1517953703 | AS53: 0.1315632784 | AT53: 0.114393341 | AU53: 0.1001883468 | AV53: 0.08822528708 | AW53: 0.07832796646 | AX53: 0.07032018956 | AY53: 0.06372805152 | AZ53: 0.05864268789 | BA53: 0.05404641837 | BB53: 0.05022844644 | BC53: 0.04624460781 | BD53: 0.04207849809
E54: 14 | F54: 1300 | G54: 1.033966034 | H54: 1.118811881 | O54: 14 | P54: 1800 | Q54: 0.08391153776 | R54: 0.09282459445 | S54: 0.1031229115 | T54: 0.1159001154 | U54: 0.1312837961 | V54: 0.1500941734 | W54: 0.1730117261 | X54: 0.2007837657 | Y54: 0.235093262 | Z54: 0.2784251777 | AA54: 0.3350385807 | AB54: 0.4139862689 | AC54: 0.5115377605 | AD54: 0.5567045386 | AE54: 0.5264839905 | AP54: 0.24172793 | AQ54: 0.2054924357 | AR54: 0.1761832432 | AS54: 0.1519715657 | AT54: 0.1316422626 | AU54: 0.1148186403 | AV54: 0.1006683274 | AW54: 0.08890576584 | AX54: 0.07930007898 | AY54: 0.07137736193 | AZ54: 0.06516191749 | BA54: 0.05967677259 | BB54: 0.05521538368 | BC54: 0.0508250805 | BD54: 0.04633027523
E55: 15 | F55: 1400 | G55: 1.035631036 | H55: 1.128005658 | O55: 15 | P55: 1900 | Q55: 0.07461571177 | R55: 0.0821313567 | S55: 0.09070417401 | T55: 0.1014156389 | U55: 0.1142596756 | V55: 0.1300382769 | W55: 0.1491706665 | X55: 0.1721185977 | Y55: 0.2000546813 | Z55: 0.2345282216 | AA55: 0.2778722887 | AB55: 0.3346679628 | AC55: 0.4136095753 | AD55: 0.5113858679 | AE55: 0.5564311319 | AP55: 0.2875630354 | AQ55: 0.2417461571 | AR55: 0.2056747068 | AS55: 0.1763958928 | AT55: 0.1521234583 | AU55: 0.1321161674 | AV55: 0.1153593778 | AW55: 0.101391336 | AX55: 0.08992040829 | AY55: 0.08041800838 | AZ55: 0.07287198493 | BA55: 0.06631022541 | BB55: 0.06103043927 | BC55: 0.05609393037 | BD55: 0.05122000122
E56: 16 | F56: 1500 | G56: 1.036963037 | H56: 1.135785007 | O56: 16
E57: 17 | F57: 1600 | G57: 1.037962038 | H57: 1.142857143 | O57: 17
E58: 18 | F58: 1700 | G58: 1.038628039 | H58: 1.147807638 | O58: 18
E59: 19 | F59: 1800 | G59: 1.039294039 | H59: 1.150636492 | O59: 19
E60: 20 | F60: 1900 | G60: 1.03962704 | H60: 1.15417256 | O60: 20
E61: 21 | F61: 2000 | G61: 1.03962704 | H61: 1.154879774 | O61: 21
E62: 22 | F62: 2100 | G62: 1.039294039 | H62: 1.154879774 | O62: 22
E63: 23 | F63: 2200 | G63: 1.038961039 | H63: 1.152758133 | O63: 23
E64: 24 | F64: 2300 | G64: 1.038295038 | H64: 1.149929279 | O64: 24
E65: 25 | F65: 2400 | G65: 1.037296037 | H65: 1.144978784 | O65: 25
E66: 26 | F66: 2500 | G66: 1.035964036 | H66: 1.138613861 | Q66: 0.009032653645 | R66: 0.01847582497 | S66: 0.03385110572 | T66: 0.05555526167 | U66: 0.08167017251 | V66: 0.1075447947 | W66: 0.1268540621 | X66: 0.1340322345 | Y66: 0.1268540919 | Z66: 0.1075447947 | AA66: 0.08167016506 | AB66: 0.05555526167 | AC66: 0.03385110572 | AD66: 0.01847581007 | AE66: 0.009032670408 | AF66: 0 | AG66: 0 | AH66: 0 | AI66: 0 | AJ66: 0 | AK66: 0 | AL66: 0 | AM66: 0 | AN66: 0 | AO66: 0 | AP66: 0.009032653645 | AQ66: 0.01847582497 | AR66: 0.03385110572 | AS66: 0.05555526167 | AT66: 0.08167017251 | AU66: 0.1075447947 | AV66: 0.1268540621 | AW66: 0.1340322345 | AX66: 0.1268540919 | AY66: 0.1075447947 | AZ66: 0.08167016506 | BA66: 0.05555526167 | BB66: 0.03385110572 | BC66: 0.01847581007 | BD66: 0.009032670408 | BE66: 0 | BF66: 0 | BG66: 0 | BH66: 0 | BI66: 0 | BJ66: 0 | BK66: 0 | BL66: 0 | BM66: 0 | BN66: 0 | BO66: =SUM(AP66:BN66) -> 1.000000009
E67: 27 | F67: 2600 | G67: 1.034632035 | H67: 1.130127298
E68: 28 | F68: 2700 | G68: 1.032967033 | H68: 1.120933522
E69: 29 | F69: 2800 | G69: 1.031302031 | H69: 1.111739745
E70: 30 | F70: 2900 | G70: 1.028971029 | H70: 1.100424328
E71: 31 | F71: 3000 | G71: 1.026640027 | H71: 1.088401697
E72: 32 | F72: 3100 | G72: 1.023976024 | H72: 1.07708628
E73: 33 | F73: 3200 | G73: 1.020979021 | H73: 1.062942008
E74: 34 | F74: 3300 | G74: 1.017982018 | H74: 1.050919378
E75: 35 | F75: 3400 | G75: 1.014319014 | H75: 1.03748232
E76: 36 | F76: 3500 | G76: 1.010656011 | H76: 1.025459689
E77: 37 | F77: 3600 | G77: 1.006660007 | H77: 1.018387553
E78: 38 | F78: 3700 | G78: 1.002664003 | H78: 1.010608204
E79: 39 | F79: 3800 | G79: 1 | H79: 1.005657709
E80: 40 | F80: 3900 | G80: 0.9986679987 | H80: 1.002828854
E81: 41 | F81: 4000 | G81: 0.9993339993 | H81: 1.000707214
E82: 42
E83: 43
E84: 44
E85: 45
E86: 46
E87: 47
E88: 48
E89: 49
E90: 50
BE94: 0 | BF94: 0 | BG94: 0 | BH94: 0 | BI94: 0 | BJ94: 0 | BK94: 0 | BL94: 0 | BM94: 0 | BN94: 0 | BO94: 0 | BP94: 0.0005804169341
BF96: 0.001586429193
F100: コンクリート版の温度差と発生頻度（率）
F102: (温度差の大きいところ) | M102: (温度差の小さいところ)
F103: 温度差 | G103: 150 | H103: 200 | I103: 230 | J103: 250 | K103: 280 | L103: 300 | M103: 温度差 | N103: 150 | O103: 200 | P103: 230 | Q103: 250 | R103: 280 | S103: 300 | T103: 290
F104: 19 | G104: 0 | H104: 0 | I104: 0.002 | J104: 0.005 | K104: 0.01 | L104: 0.012 | M104: =F104 -> 19 | N104: 0 | O104: 0 | P104: 0 | Q104: 0 | R104: 0 | S104: 0 | T104: 0.01099999994
F105: 17 | G105: 0 | H105: 0.005 | I105: 0.015 | J105: 0.018 | K105: 0.018 | L105: 0.02 | M105: =F105 -> 17 | N105: 0 | O105: 0 | P105: 0 | Q105: 0 | R105: 0 | S105: 0 | T105: 0.01899999939
F106: 15 | G106: 0.005 | H106: 0.02 | I106: 0.028 | J106: 0.032 | K106: 0.037 | L106: 0.038 | M106: 15 | N106: 0 | O106: 0 | P106: 0.001 | Q106: 0.002 | R106: 0.004 | S106: 0.007 | T106: 0.03750000149
F107: 13 | G107: 0.015 | H107: 0.04 | I107: 0.04 | J107: 0.04 | K107: 0.04 | L107: 0.04 | M107: 13 | N107: 0.005 | O107: 0.007 | P107: 0.012 | Q107: 0.016 | R107: 0.021 | S107: 0.025 | T107: 0.03999999911
F108: 11 | G108: 0.04 | H108: 0.06 | I108: 0.05 | J108: 0.05 | K108: 0.045 | L108: 0.045 | M108: 11 | N108: 0.02 | O108: 0.028 | P108: 0.032 | Q108: 0.037 | R108: 0.045 | S108: 0.053 | T108: 0.04500000179
F109: 9 | G109: 0.07 | H109: 0.07 | I109: 0.075 | J109: 0.08 | K109: 0.08 | L109: 0.08 | M109: 9 | N109: 0.05 | O109: 0.06 | P109: 0.075 | Q109: 0.085 | R109: 0.08 | S109: 0.08 | T109: 0.07999999821
F110: 7 | G110: 0.1 | H110: 0.1 | I110: 0.1 | J110: 0.1 | K110: 0.1 | L110: 0.105 | M110: 7 | N110: 0.1 | O110: 0.11 | P110: 0.11 | Q110: 0.11 | R110: 0.11 | S110: 0.115 | T110: 0.1024999991
F111: 5 | G111: 0.12 | H111: 0.12 | I111: 0.125 | J111: 0.125 | K111: 0.125 | L111: 0.125 | M111: 5 | N111: 0.135 | O111: 0.14 | P111: 0.15 | Q111: 0.155 | R111: 0.15 | S111: 0.14 | T111: 0.125
F112: 3 | G112: 0.2 | H112: 0.195 | I112: 0.19 | J112: 0.19 | K112: 0.19 | L112: 0.185 | M112: 3 | N112: 0.19 | O112: 0.195 | P112: 0.2 | Q112: 0.205 | R112: 0.21 | S112: 0.21 | T112: 0.1875
F113: 1 | G113: 0.45 | H113: 0.39 | I113: 0.375 | J113: 0.36 | K113: 0.355 | L113: 0.35 | M113: 1 | N113: 0.5 | O113: 0.46 | P113: 0.42 | Q113: 0.39 | R113: 0.38 | S113: 0.37 | T113: 0.3524999917
F114: -1 | G114: 0.51 | H114: 0.45 | I114: 0.42 | J114: 0.41 | K114: 0.4 | L114: 0.39 | M114: -1 | N114: 0.65 | O114: 0.615 | P114: 0.61 | Q114: 0.6 | R114: 0.53 | S114: 0.48 | T114: 0
F115: -3 | G115: 0.34 | H115: 0.33 | I115: 0.33 | J115: 0.32 | K115: 0.32 | L115: 0.32 | M115: -3 | N115: 0.35 | O115: 0.36 | P115: 0.345 | Q115: 0.335 | R115: 0.36 | S115: 0.38 | T115: 0
F116: -5 | G116: 0.15 | H116: 0.2 | I116: 0.22 | J116: 0.22 | K116: 0.225 | L116: 0.23 | M116: -5 | N116: 0 | O116: 0.025 | P116: 0.044 | Q116: 0.063 | R116: 0.1 | S116: 0.12 | T116: 0
F117: -7 | G117: 0 | H117: 0.02 | I117: 0.03 | J117: 0.048 | K117: 0.052 | L117: 0.055 | M117: -7 | N117: 0 | O117: 0 | P117: 0.001 | Q117: 0.002 | R117: 0.01 | S117: 0.02 | T117: 0
F118: -9 | G118: 0 | H118: 0 | I118: 0 | J118: 0.002 | K118: 0.003 | L118: 0.005 | M118: -9 | N118: 0 | O118: 0 | P118: 0 | Q118: 0 | R118: 0 | S118: 0 | T118: 0
T119: =SUM(T104:T118) -> 0.9999999907
F123: 温度差正 | G123: =N38 -> 0.6
F124: 温度差負 | G124: =N39 -> 0.4
F126: コンクリート版幅 (ｍ) | G126: 正の場合 | H126: 負の場合
F127: 5 | G127: 0.85 | H127: 0.4
F128: 6 | G128: 0.91 | H128: 0.55
F129: 7.5 | G129: 0.95 | H129: 0.73
F130: 8 | G130: 0.95 | H130: 0.78
F131: 10 | G131: 0.96 | H131: 0.9
F132: 12.5 | G132: 0.97 | H132: 0.93
F133: 15 | G133: 0.98 | H133: 0.95
G134: 0.8561000228 | H134: 0.3950000107

Sheet Sheet2

Sheet Sheet1
D3: 設計年数 | E3: 3 | F3: 9 | G3: 19 | H3: 34 | I3: 54 | J3: 85 | K3: 100 | L3: 135
D4: 破壊確率 | E4: 10 | F4: 20 | G4: 30 | H4: 40 | I4: 50 | J4: 60 | K4: 64 | L4: 70

Sheet 演習1（JPC）
B2: =IF(G4=1,"CRC版疲労計算(入力画面)","JPC版疲労計算(入力画面)") -> JPC版疲労計算(入力画面) | I2: =IF(G4=1,"[W="&G8&"mm]","[W="&G8&"mm,L="&G9&"mm]") -> [W=mm,L=mm] | M2: ※白色セルにデータ入力してください。【入力方法は、手入力またはコピー・貼り付けでお願いします。切り取り、移動はNGです。】
F4: コンクリート版の種類 | I4: 設計期間 | K4: 年
G5: 1 ：CRC版 | I5: 破壊確率 | K5: ％
G6: 2 ：JPC版 | M6: 走行位置頻度（左輪） | R6: 左輪走行位置 (自由縁部からの走行位置)
F7: コンクリート版の寸法 | I7: 疲労曲線 | J7: 1 | S7: 1 | T7: 2 | U7: 3 | V7: 4 | W7: 5 | X7: 6 | Y7: 7 | Z7: 8 | AA7: 9 | AB7: 10 | AC7: 11 | AD7: 12 | AE7: 13 | AF7: 14 | AG7: 15 | AH7: 16 | AI7: 17 | AJ7: 18 | AK7: 19 | AL7: 20 | AM7: 21 | AN7: 22 | AO7: 23 | AP7: 24 | AQ7: 25
B8: 着目点 | C8: 疲労度 | D8: 応力比１を | F8: 幅員方向 | H8: mm | J8: 1 ：舗装示方書2014 | M8: 車線幅員(計算上の車線幅） | O8: =O9-W24+W30 -> 200 | P8: mm | R8: 走行位置(mm)
D9: 超えた箇所数 | F9: =IF(G4=1,"走行方向(入力なし)","走行方向") -> 走行方向 | H9: mm | M9: コンクリート版の幅 | O9: =G8 -> 0 | P9: mm
A10: 1 | B10: 400 | C10: 0.05260865569 | D10: OK | M10: 路肩の幅 | P10: mm
A11: 2 | B11: 500 | C11: 0.1166779371 | D11: OK | F11: コンクリート版厚 | H11: mm | M11: 走行中心位置（中央線から） | O11: =0.65*O8-460 -> -330 | P11: mm
A12: 3 | B12: 600 | C12: 0.178815794 | D12: OK | M12: 外側線からの走行中心位置 | O12: =O8-O11 -> 530 | P12: mm
A13: 4 | B13: 700 | C13: 0.2483244487 | D13: OK | F13: コンクリート版幅 | G13: =IF(G4=1,G8,G9) -> 0 | H13: mm | M13: 自由縁部からの走行中心位置 | O13: =O12+(O9-O8) -> 330 | P13: mm 修正値 | R13: 右輪走行位置 (自由縁部からの走行位置)
A14: 5 | B14: 800 | C14: 0.3344663096 | D14: OK | F14: （そり拘束係数選定用） | M14: 自由縁から左車輪走行最頻位置 | O14: =O9-O11-O16/2 -> -570 | Q14: mm | S14: 26 | T14: 27 | U14: 28 | V14: 29 | W14: 30 | X14: 31 | Y14: 32 | Z14: 33 | AA14: 34 | AB14: 35 | AC14: 36 | AD14: 37 | AE14: 38 | AF14: 39 | AG14: 40 | AH14: 41 | AI14: 42 | AJ14: 43 | AK14: 44 | AL14: 45 | AM14: 46 | AN14: 47 | AO14: 48 | AP14: 49 | AQ14: 50
A15: 6 | B15: 900 | C15: 0.427925673 | D15: OK | M15: 標準偏差 | O15: =O10*0.04+230 -> 230 | P15: mm | R15: 走行位置(mm) | S15: =IF(S8="",NA(),S8+$O16) -> 
A16: 7 | B16: 1000 | C16: 0.5163526679 | D16: OK | F16: 温度差の発生頻度 | M16: トレッド | O16: 1800 | P16: mm
A17: 8 | B17: 1100 | C17: 0.5804414662 | D17: OK | G17: 1：温度差の大きいところ | M17: 側帯の幅 | P17: mm
A18: 9 | B18: 1200 | C18: 0.6020514336 | D18: OK | G18: 2：温度差の小さいところ
A19: 10 | B19: 1300 | C19: 0.575759961 | D19: OK | M19: 荷重および頻度（輪数）
A20: 11 | B20: 1400 | C20: 0.5024796243 | D20: OK | F20: ヤング係数 E | H20: MPa
A21: 12 | B21: 1500 | C21: 0.3988399559 | D21: OK | F21: ポアソン比 ν | M21: 荷重 F (KN) | N21: 1日頻度（輪数） | O21: 設計輪数 | V21: 路肩 | AA21: 車線幅員(計算上の車線幅） | AB21: =O8 -> 200 | AF21: 中央線
A22: 13 | B22: 1600 | C22: 0.2874652903 | D22: OK | F22: 設計基準曲げ強度fbk | H22: MPa | M22: 9.8 | N22: 9998 | O22: =$J$4*365*N22 -> 0 | S22: =IF(G4=1,"CRC版","NC版") -> NC版 | V22: =O10 -> 0 | AA22: 車線幅員 | AB22: =AB21-W30 -> 0
A23: 14 | B23: 1700 | C23: 0.1884369908 | D23: OK | F23: 設計曲げ強度 fbd,h | G23: =0.43*(1+7.04/G11^(1/3))*G22 ->  | H23: MPa | M23: 19.6 | N23: 2418 | O23: =$J$4*365*N23 -> 0 | W23: 側帯
A24: 15 | B24: 1800 | C24: 0.1131462048 | D24: OK | F24: 寸法効果式 | G24: 1 | M24: 29.4 | N24: 1802 | O24: 0 | V24: =V22-W24 -> 0 | W24: =O17 -> 0 | X24: 車輪走行最頻位置 | AC24: 走行中心位置 | AD24: =O11 -> -330 | AG24: 頻度合計
A25: 16 | B25: 1900 | C25: 0.05876424653 | D25: OK | G25: 1 ：舗装示方書2014 | M25: 39.2 | N25: 980 | O25: 0 | Q25: =IF(G4=1,"***",G9) -> 0 | S25: NC版応力計算位置 | X25: =P14 -> 0 | Z25: トレッド | AA25: =O16 -> 1800 | AG25: =BO66 -> 1.000000009
A26: 17 | B26: 2000 | C26: 0.02379583066 | D26: OK | M26: 49 | N26: 505 | O26: 0 | Q26: mm | AD26: =AA34-AE26 -> -150 | AE26: 150 | AG26: 頻度％合計
A27: 18 | C27: 0 | D27: OK | M27: 58.8 | N27: 329 | O27: 0 | AG27: =AG25*100 -> 100.0000009
A28: 19 | C28: 0 | D28: OK | F28: 応力低減係数 | M28: 68.6 | N28: 182 | O28: 0 | Y28: 左輪 | AB28: 右輪
A29: 20 | C29: 0 | D29: OK | F29: 係数C | M29: 78.4 | N29: 81 | O29: 0 | S29: 左輪走行位置 | W29: =W24-W30 -> -200
A30: 21 | C30: 0 | D30: OK | F30: 熱膨張率 α | G30: 1e-05 | H30: 1/℃ | M30: 88.2 | N30: 36 | O30: 0 | S30: タイヤ：幅300mm×長さ233mm | W30: 200
A31: 22 | C31: 0 | D31: OK | F31: 路盤反力係数 k | H31: GPa/m | M31: 98 | N31: 19 | O31: 0 | S31: CRC版応力計算位置
A32: 23 | C32: 0 | D32: OK | F32: 剛比半径 ℓ | G32: =(G20*G11^3/12/(1-G21^2)/G31)^0.25 ->  | H32: mm | M32: 117.6 | N32: 0 | O32: 0 | V32: 自由縁部
A33: 24 | C33: 0 | D33: OK | F33: タイヤ接地圧 ｐ | G33: 0.7 | H33: MPa | M33: 137.2 | N33: 0 | O33: 0 | S33: 幅員方向 | AA33: コンクリート版の幅
A34: 25 | C34: 0 | D34: OK | F34: 荷重応力計算法 | G34: 1 | M34: 156.8 | N34: 0 | O34: 0 | S34: =G8 -> 0 | T34: mm | AA34: =O9 -> 0
M36: 温度差正、負での頻度（率）
F37: 温度応力比 （基準応力に対する比率） | Q37: 着目点の各走行位置における荷重応力比 （基準応力に対する応力比）
F38: 入力点数は、２０点以上５０点以下 | M38: 温度差正 | N38: 0.6 | R38: 1 | S38: 2 | T38: 3 | U38: 4 | V38: 5 | W38: 6 | X38: 7 | Y38: 8 | Z38: 9 | AA38: 10 | AB38: 11 | AC38: 12 | AD38: 13 | AE38: 14 | AF38: 15 | AG38: 16 | AH38: 17 | AI38: 18 | AJ38: 19 | AK38: 20 | AL38: 21 | AM38: 22 | AN38: 23 | AO38: 24 | AP38: 25 | AQ38: 26 | AR38: 27 | AS38: 28 | AT38: 29 | AU38: 30 | AV38: 31 | AW38: 32 | AX38: 33 | AY38: 34 | AZ38: 35 | BA38: 36 | BB38: 37 | BC38: 38 | BD38: 39 | BE38: 40 | BF38: 41 | BG38: 42 | BH38: 43 | BI38: 44 | BJ38: 45 | BK38: 46 | BL38: 47 | BM38: 48 | BN38: 49 | BO38: 50
G39: 温度応力比 | M39: 温度差負 | N39: =1-N38 -> 0.4 | P39: 着目点(mm) 入力 | Q39: 左輪走行位置(mm) | AP39: 右輪走行位置(mm)
F40: 位置(mm) | G40: 温度差正 | H40: 温度差負 | Q40: =IF(S8="","",S8) ->  | AA40: =IF(AC8="","",AC8) ->  | AB40: =IF(AD8="","",AD8) ->  | AC40: =IF(AE8="","",AE8) ->  | AD40: =IF(AF8="","",AF8) ->  | AP40: =IFERROR(S15,"") -> 
E41: 1 | O41: 1
E42: 2 | O42: 2
E43: 3 | O43: 3
E44: 4 | O44: 4
E45: 5 | O45: 5
E46: 6 | O46: 6
E47: 7 | O47: 7
E48: 8 | O48: 8
E49: 9 | O49: 9
E50: 10 | O50: 10
E51: 11 | O51: 11
E52: 12 | O52: 12
E53: 13 | O53: 13
E54: 14 | O54: 14
E55: 15 | O55: 15
E56: 16 | O56: 16
E57: 17 | O57: 17
E58: 18 | O58: 18
E59: 19 | O59: 19
E60: 20 | O60: 20
E61: 21 | O61: 21
E62: 22 | O62: 22
E63: 23 | O63: 23
E64: 24 | O64: 24
E65: 25 | O65: 25
E66: 26 | Q66: 0.009032653645 | R66: 0.01847582497 | S66: 0.03385110572 | T66: 0.05555526167 | U66: 0.08167017251 | V66: 0.1075447947 | W66: 0.1268540621 | X66: 0.1340322345 | Y66: 0.1268540919 | Z66: 0.1075447947 | AA66: 0.08167016506 | AB66: 0.05555526167 | AC66: 0.03385110572 | AD66: 0.01847581007 | AE66: 0.009032670408 | AF66: 0 | AG66: 0 | AH66: 0 | AI66: 0 | AJ66: 0 | AK66: 0 | AL66: 0 | AM66: 0 | AN66: 0 | AO66: 0 | AP66: 0.009032653645 | AQ66: 0.01847582497 | AR66: 0.03385110572 | AS66: 0.05555526167 | AT66: 0.08167017251 | AU66: 0.1075447947 | AV66: 0.1268540621 | AW66: 0.1340322345 | AX66: 0.1268540919 | AY66: 0.1075447947 | AZ66: 0.08167016506 | BA66: 0.05555526167 | BB66: 0.03385110572 | BC66: 0.01847581007 | BD66: 0.009032670408 | BE66: 0 | BF66: 0 | BG66: 0 | BH66: 0 | BI66: 0 | BJ66: 0 | BK66: 0 | BL66: 0 | BM66: 0 | BN66: 0 | BO66: =SUM(AP66:BN66) -> 1.000000009
E67: 27
E68: 28
E69: 29
E70: 30
E71: 31
E72: 32
E73: 33
E74: 34
E75: 35
E76: 36
E77: 37
E78: 38
E79: 39
E80: 40
E81: 41
E82: 42
E83: 43
E84: 44
E85: 45
E86: 46
E87: 47
E88: 48
E89: 49
E90: 50
BE94: 0 | BF94: 0 | BG94: 0 | BH94: 0 | BI94: 0 | BJ94: 0 | BK94: 0 | BL94: 0 | BM94: 0 | BN94: 0 | BO94: 0 | BP94: 0.0005804169341
BF96: 0.001586429193
F100: コンクリート版の温度差と発生頻度（率）
F102: (温度差の大きいところ) | M102: (温度差の小さいところ)
F103: 温度差 | G103: 150 | H103: 200 | I103: 230 | J103: 250 | K103: 280 | L103: 300 | M103: 温度差 | N103: 150 | O103: 200 | P103: 230 | Q103: 250 | R103: 280 | S103: 300 | T103: 280
F104: 19 | G104: 0 | H104: 0 | I104: 0.002 | J104: 0.005 | K104: 0.01 | L104: 0.012 | M104: =F104 -> 19 | N104: 0 | O104: 0 | P104: 0 | Q104: 0 | R104: 0 | S104: 0 | T104: 0.006000000052
F105: 17 | G105: 0 | H105: 0.005 | I105: 0.015 | J105: 0.018 | K105: 0.018 | L105: 0.02 | M105: =F105 -> 17 | N105: 0 | O105: 0 | P105: 0 | Q105: 0 | R105: 0 | S105: 0 | T105: 0.01080000028
F106: 15 | G106: 0.005 | H106: 0.02 | I106: 0.028 | J106: 0.032 | K106: 0.037 | L106: 0.038 | M106: 15 | N106: 0 | O106: 0 | P106: 0.001 | Q106: 0.002 | R106: 0.004 | S106: 0.007 | T106: 0.0222000014
F107: 13 | G107: 0.015 | H107: 0.04 | I107: 0.04 | J107: 0.04 | K107: 0.04 | L107: 0.04 | M107: 13 | N107: 0.005 | O107: 0.007 | P107: 0.012 | Q107: 0.016 | R107: 0.021 | S107: 0.025 | T107: 0.02400000021
F108: 11 | G108: 0.04 | H108: 0.06 | I108: 0.05 | J108: 0.05 | K108: 0.045 | L108: 0.045 | M108: 11 | N108: 0.02 | O108: 0.028 | P108: 0.032 | Q108: 0.037 | R108: 0.045 | S108: 0.053 | T108: 0.02700000256
F109: 9 | G109: 0.07 | H109: 0.07 | I109: 0.075 | J109: 0.08 | K109: 0.08 | L109: 0.08 | M109: 9 | N109: 0.05 | O109: 0.06 | P109: 0.075 | Q109: 0.085 | R109: 0.08 | S109: 0.08 | T109: 0.04800000042
F110: 7 | G110: 0.1 | H110: 0.1 | I110: 0.1 | J110: 0.1 | K110: 0.1 | L110: 0.105 | M110: 7 | N110: 0.1 | O110: 0.11 | P110: 0.11 | Q110: 0.11 | R110: 0.11 | S110: 0.115 | T110: 0.06000000238
F111: 5 | G111: 0.12 | H111: 0.12 | I111: 0.125 | J111: 0.125 | K111: 0.125 | L111: 0.125 | M111: 5 | N111: 0.135 | O111: 0.14 | P111: 0.15 | Q111: 0.155 | R111: 0.15 | S111: 0.14 | T111: 0.07500000298
F112: 3 | G112: 0.2 | H112: 0.195 | I112: 0.19 | J112: 0.19 | K112: 0.19 | L112: 0.185 | M112: 3 | N112: 0.19 | O112: 0.195 | P112: 0.2 | Q112: 0.205 | R112: 0.21 | S112: 0.21 | T112: 0.1140000001
F113: 1 | G113: 0.45 | H113: 0.39 | I113: 0.375 | J113: 0.36 | K113: 0.355 | L113: 0.35 | M113: 1 | N113: 0.5 | O113: 0.46 | P113: 0.42 | Q113: 0.39 | R113: 0.38 | S113: 0.37 | T113: 0.2129999995
F114: -1 | G114: 0.51 | H114: 0.45 | I114: 0.42 | J114: 0.41 | K114: 0.4 | L114: 0.39 | M114: -1 | N114: 0.65 | O114: 0.615 | P114: 0.61 | Q114: 0.6 | R114: 0.53 | S114: 0.48 | T114: 0.1599999964
F115: -3 | G115: 0.34 | H115: 0.33 | I115: 0.33 | J115: 0.32 | K115: 0.32 | L115: 0.32 | M115: -3 | N115: 0.35 | O115: 0.36 | P115: 0.345 | Q115: 0.335 | R115: 0.36 | S115: 0.38 | T115: 0.1279999912
F116: -5 | G116: 0.15 | H116: 0.2 | I116: 0.22 | J116: 0.22 | K116: 0.225 | L116: 0.23 | M116: -5 | N116: 0 | O116: 0.025 | P116: 0.044 | Q116: 0.063 | R116: 0.1 | S116: 0.12 | T116: 0.08999998868
F117: -7 | G117: 0 | H117: 0.02 | I117: 0.03 | J117: 0.048 | K117: 0.052 | L117: 0.055 | M117: -7 | N117: 0 | O117: 0 | P117: 0.001 | Q117: 0.002 | R117: 0.01 | S117: 0.02 | T117: 0.02080000006
F118: -9 | G118: 0 | H118: 0 | I118: 0 | J118: 0.002 | K118: 0.003 | L118: 0.005 | M118: -9 | N118: 0 | O118: 0 | P118: 0 | Q118: 0 | R118: 0 | S118: 0 | T118: 0.001199999941
F123: 温度差正 | G123: =N38 -> 0.6
F124: 温度差負 | G124: =N39 -> 0.4
F126: コンクリート版幅 (ｍ) | G126: 正の場合 | H126: 負の場合
F127: 5 | G127: 0.85 | H127: 0.4
F128: 6 | G128: 0.91 | H128: 0.55
F129: 7.5 | G129: 0.95 | H129: 0.73
F130: 8 | G130: 0.95 | H130: 0.78
F131: 10 | G131: 0.96 | H131: 0.9
F132: 12.5 | G132: 0.97 | H132: 0.93
F133: 15 | G133: 0.98 | H133: 0.95
G134: 0.9599999785 | H134: 0.8999999762

Sheet 演習2（CRC）
B2: =IF(G4=1,"CRC版疲労計算(入力画面)","JPC版疲労計算(入力画面)") -> JPC版疲労計算(入力画面) | I2: =IF(G4=1,"[W="&G8&"mm]","[W="&G8&"mm,L="&G9&"mm]") -> [W=mm,L=mm] | M2: ※白色セルにデータ入力してください。【入力方法は、手入力またはコピー・貼り付けでお願いします。切り取り、移動はNGです。】
F4: コンクリート版の種類 | I4: 設計期間 | K4: 年
G5: 1 ：CRC版 | I5: 破壊確率 | K5: ％
G6: 2 ：JPC版 | M6: 走行位置頻度（左輪） | R6: 左輪走行位置 (自由縁部からの走行位置)
F7: コンクリート版の寸法 | I7: 疲労曲線 | J7: 1 | S7: 1 | T7: 2 | U7: 3 | V7: 4 | W7: 5 | X7: 6 | Y7: 7 | Z7: 8 | AA7: 9 | AB7: 10 | AC7: 11 | AD7: 12 | AE7: 13 | AF7: 14 | AG7: 15 | AH7: 16 | AI7: 17 | AJ7: 18 | AK7: 19 | AL7: 20 | AM7: 21 | AN7: 22 | AO7: 23 | AP7: 24 | AQ7: 25
B8: 着目点 | C8: 疲労度 | D8: 応力比１を | F8: 幅員方向 | H8: mm | J8: 1 ：舗装示方書2014 | M8: 車線幅員(計算上の車線幅） | O8: =O9-W24+W30 -> 200 | P8: mm | R8: 走行位置(mm)
D9: 超えた箇所数 | F9: =IF(G4=1,"走行方向(入力なし)","走行方向") -> 走行方向 | H9: mm | M9: コンクリート版の幅 | O9: =G8 -> 0 | P9: mm
A10: 1 | B10: 400 | C10: 0.05260865569 | D10: OK | M10: 路肩の幅 | P10: mm
A11: 2 | B11: 500 | C11: 0.1166779371 | D11: OK | F11: コンクリート版厚 | H11: mm | M11: 走行中心位置（中央線から） | O11: =0.65*O8-460 -> -330 | P11: mm
A12: 3 | B12: 600 | C12: 0.178815794 | D12: OK | M12: 外側線からの走行中心位置 | O12: =O8-O11 -> 530 | P12: mm
A13: 4 | B13: 700 | C13: 0.2483244487 | D13: OK | F13: コンクリート版幅 | G13: =IF(G4=1,G8,G9) -> 0 | H13: mm | M13: 自由縁部からの走行中心位置 | O13: =O12+(O9-O8) -> 330 | P13: mm 修正値 | R13: 右輪走行位置 (自由縁部からの走行位置)
A14: 5 | B14: 800 | C14: 0.3344663096 | D14: OK | F14: （そり拘束係数選定用） | M14: 自由縁から左車輪走行最頻位置 | O14: =O9-O11-O16/2 -> -570 | Q14: mm | S14: 26 | T14: 27 | U14: 28 | V14: 29 | W14: 30 | X14: 31 | Y14: 32 | Z14: 33 | AA14: 34 | AB14: 35 | AC14: 36 | AD14: 37 | AE14: 38 | AF14: 39 | AG14: 40 | AH14: 41 | AI14: 42 | AJ14: 43 | AK14: 44 | AL14: 45 | AM14: 46 | AN14: 47 | AO14: 48 | AP14: 49 | AQ14: 50
A15: 6 | B15: 900 | C15: 0.427925673 | D15: OK | M15: 標準偏差 | O15: =O10*0.04+230 -> 230 | P15: mm | R15: 走行位置(mm) | S15: =IF(S8="",NA(),S8+$O16) -> 
A16: 7 | B16: 1000 | C16: 0.5163526679 | D16: OK | F16: 温度差の発生頻度 | M16: トレッド | O16: 1800 | P16: mm
A17: 8 | B17: 1100 | C17: 0.5804414662 | D17: OK | G17: 1：温度差の大きいところ | M17: 側帯の幅 | P17: mm
A18: 9 | B18: 1200 | C18: 0.6020514336 | D18: OK | G18: 2：温度差の小さいところ
A19: 10 | B19: 1300 | C19: 0.575759961 | D19: OK | M19: 荷重および頻度（輪数）
A20: 11 | B20: 1400 | C20: 0.5024796243 | D20: OK | F20: ヤング係数 E | H20: MPa
A21: 12 | B21: 1500 | C21: 0.3988399559 | D21: OK | F21: ポアソン比 ν | M21: 荷重 F (KN) | N21: 1日頻度（輪数） | O21: 設計輪数 | V21: 路肩 | AA21: 車線幅員(計算上の車線幅） | AB21: =O8 -> 200 | AF21: 中央線
A22: 13 | B22: 1600 | C22: 0.2874652903 | D22: OK | F22: 設計基準曲げ強度fbk | H22: MPa | M22: 9.8 | N22: 9998 | O22: =$J$4*365*N22 -> 0 | S22: =IF(G4=1,"CRC版","NC版") -> NC版 | V22: =O10 -> 0 | AA22: 車線幅員 | AB22: =AB21-W30 -> 0
A23: 14 | B23: 1700 | C23: 0.1884369908 | D23: OK | F23: 設計曲げ強度 fbd,h | G23: =0.43*(1+7.04/G11^(1/3))*G22 ->  | H23: MPa | M23: 19.6 | N23: 2418 | O23: =$J$4*365*N23 -> 0 | W23: 側帯
A24: 15 | B24: 1800 | C24: 0.1131462048 | D24: OK | F24: 寸法効果式 | G24: 1 | M24: 29.4 | N24: 1802 | O24: 0 | V24: =V22-W24 -> 0 | W24: =O17 -> 0 | X24: 車輪走行最頻位置 | AC24: 走行中心位置 | AD24: =O11 -> -330 | AG24: 頻度合計
A25: 16 | B25: 1900 | C25: 0.05876424653 | D25: OK | G25: 1 ：舗装示方書2014 | M25: 39.2 | N25: 980 | O25: 0 | Q25: =IF(G4=1,"***",G9) -> 0 | S25: NC版応力計算位置 | X25: =P14 -> 0 | Z25: トレッド | AA25: =O16 -> 1800 | AG25: =BO66 -> 1.000000009
A26: 17 | B26: 2000 | C26: 0.02379583066 | D26: OK | M26: 49 | N26: 505 | O26: 0 | Q26: mm | AD26: =AA34-AE26 -> -150 | AE26: 150 | AG26: 頻度％合計
A27: 18 | C27: 0 | D27: OK | M27: 58.8 | N27: 329 | O27: 0 | AG27: =AG25*100 -> 100.0000009
A28: 19 | C28: 0 | D28: OK | F28: 応力低減係数 | M28: 68.6 | N28: 182 | O28: 0 | Y28: 左輪 | AB28: 右輪
A29: 20 | C29: 0 | D29: OK | F29: 係数C | M29: 78.4 | N29: 81 | O29: 0 | S29: 左輪走行位置 | W29: =W24-W30 -> -200
A30: 21 | C30: 0 | D30: OK | F30: 熱膨張率 α | H30: 1/℃ | M30: 88.2 | N30: 36 | O30: 0 | S30: タイヤ：幅300mm×長さ233mm | W30: 200
A31: 22 | C31: 0 | D31: OK | F31: 路盤反力係数 k | G31: 0.1 | H31: GPa/m | M31: 98 | N31: 19 | O31: 0 | S31: CRC版応力計算位置
A32: 23 | C32: 0 | D32: OK | F32: 剛比半径 ℓ | G32: =(G20*G11^3/12/(1-G21^2)/G31)^0.25 -> 0 | H32: mm | M32: 117.6 | N32: 0 | O32: 0 | V32: 自由縁部
A33: 24 | C33: 0 | D33: OK | F33: タイヤ接地圧 ｐ | G33: 0.7 | H33: MPa | M33: 137.2 | N33: 0 | O33: 0 | S33: 幅員方向 | AA33: コンクリート版の幅
A34: 25 | C34: 0 | D34: OK | F34: 荷重応力計算法 | G34: 1 | M34: 156.8 | N34: 0 | O34: 0 | S34: =G8 -> 0 | T34: mm | AA34: =O9 -> 0
M36: 温度差正、負での頻度（率）
F37: 温度応力比 （基準応力に対する比率） | Q37: 着目点の各走行位置における荷重応力比 （基準応力に対する応力比）
F38: 入力点数は、２０点以上５０点以下 | M38: 温度差正 | R38: 1 | S38: 2 | T38: 3 | U38: 4 | V38: 5 | W38: 6 | X38: 7 | Y38: 8 | Z38: 9 | AA38: 10 | AB38: 11 | AC38: 12 | AD38: 13 | AE38: 14 | AF38: 15 | AG38: 16 | AH38: 17 | AI38: 18 | AJ38: 19 | AK38: 20 | AL38: 21 | AM38: 22 | AN38: 23 | AO38: 24 | AP38: 25 | AQ38: 26 | AR38: 27 | AS38: 28 | AT38: 29 | AU38: 30 | AV38: 31 | AW38: 32 | AX38: 33 | AY38: 34 | AZ38: 35 | BA38: 36 | BB38: 37 | BC38: 38 | BD38: 39 | BE38: 40 | BF38: 41 | BG38: 42 | BH38: 43 | BI38: 44 | BJ38: 45 | BK38: 46 | BL38: 47 | BM38: 48 | BN38: 49 | BO38: 50
G39: 温度応力比 | M39: 温度差負 | N39: =1-N38 -> 1 | P39: 着目点(mm) 入力 | Q39: 左輪走行位置(mm) | AP39: 右輪走行位置(mm)
F40: 位置(mm) | G40: 温度差正 | H40: 温度差負 | Q40: =IF(S8="","",S8) ->  | AA40: =IF(AC8="","",AC8) ->  | AB40: =IF(AD8="","",AD8) ->  | AC40: =IF(AE8="","",AE8) ->  | AD40: =IF(AF8="","",AF8) ->  | AP40: =IFERROR(S15,"") -> 
E41: 1 | O41: 1
E42: 2 | O42: 2
E43: 3 | O43: 3
E44: 4 | O44: 4
E45: 5 | O45: 5
E46: 6 | O46: 6
E47: 7 | O47: 7
E48: 8 | O48: 8
E49: 9 | O49: 9
E50: 10 | O50: 10
E51: 11 | O51: 11
E52: 12 | O52: 12
E53: 13 | O53: 13
E54: 14 | O54: 14
E55: 15 | O55: 15
E56: 16 | O56: 16
E57: 17 | O57: 17
E58: 18 | O58: 18
E59: 19 | O59: 19
E60: 20 | O60: 20
E61: 21 | O61: 21
E62: 22 | O62: 22
E63: 23 | O63: 23
E64: 24 | O64: 24
E65: 25 | O65: 25
E66: 26 | Q66: 0.009032653645 | R66: 0.01847582497 | S66: 0.03385110572 | T66: 0.05555526167 | U66: 0.08167017251 | V66: 0.1075447947 | W66: 0.1268540621 | X66: 0.1340322345 | Y66: 0.1268540919 | Z66: 0.1075447947 | AA66: 0.08167016506 | AB66: 0.05555526167 | AC66: 0.03385110572 | AD66: 0.01847581007 | AE66: 0.009032670408 | AF66: 0 | AG66: 0 | AH66: 0 | AI66: 0 | AJ66: 0 | AK66: 0 | AL66: 0 | AM66: 0 | AN66: 0 | AO66: 0 | AP66: 0.009032653645 | AQ66: 0.01847582497 | AR66: 0.03385110572 | AS66: 0.05555526167 | AT66: 0.08167017251 | AU66: 0.1075447947 | AV66: 0.1268540621 | AW66: 0.1340322345 | AX66: 0.1268540919 | AY66: 0.1075447947 | AZ66: 0.08167016506 | BA66: 0.05555526167 | BB66: 0.03385110572 | BC66: 0.01847581007 | BD66: 0.009032670408 | BE66: 0 | BF66: 0 | BG66: 0 | BH66: 0 | BI66: 0 | BJ66: 0 | BK66: 0 | BL66: 0 | BM66: 0 | BN66: 0 | BO66: =SUM(AP66:BN66) -> 1.000000009
E67: 27
E68: 28
E69: 29
E70: 30
E71: 31
E72: 32
E73: 33
E74: 34
E75: 35
E76: 36
E77: 37
E78: 38
E79: 39
E80: 40
E81: 41
E82: 42
E83: 43
E84: 44
E85: 45
E86: 46
E87: 47
E88: 48
E89: 49
E90: 50
BE94: 0 | BF94: 0 | BG94: 0 | BH94: 0 | BI94: 0 | BJ94: 0 | BK94: 0 | BL94: 0 | BM94: 0 | BN94: 0 | BO94: 0 | BP94: 0.0005804169341
BF96: 0.001586429193
F100: コンクリート版の温度差と発生頻度（率）
F102: (温度差の大きいところ) | M102: (温度差の小さいところ)
F103: 温度差 | G103: 150 | H103: 200 | I103: 230 | J103: 250 | K103: 280 | L103: 300 | M103: 温度差 | N103: 150 | O103: 200 | P103: 230 | Q103: 250 | R103: 280 | S103: 300 | T103: 280
F104: 19 | G104: 0 | H104: 0 | I104: 0.002 | J104: 0.005 | K104: 0.01 | L104: 0.012 | M104: =F104 -> 19 | N104: 0 | O104: 0 | P104: 0 | Q104: 0 | R104: 0 | S104: 0 | T104: 0.006000000052
F105: 17 | G105: 0 | H105: 0.005 | I105: 0.015 | J105: 0.018 | K105: 0.018 | L105: 0.02 | M105: =F105 -> 17 | N105: 0 | O105: 0 | P105: 0 | Q105: 0 | R105: 0 | S105: 0 | T105: 0.01080000028
F106: 15 | G106: 0.005 | H106: 0.02 | I106: 0.028 | J106: 0.032 | K106: 0.037 | L106: 0.038 | M106: 15 | N106: 0 | O106: 0 | P106: 0.001 | Q106: 0.002 | R106: 0.004 | S106: 0.007 | T106: 0.0222000014
F107: 13 | G107: 0.015 | H107: 0.04 | I107: 0.04 | J107: 0.04 | K107: 0.04 | L107: 0.04 | M107: 13 | N107: 0.005 | O107: 0.007 | P107: 0.012 | Q107: 0.016 | R107: 0.021 | S107: 0.025 | T107: 0.02400000021
F108: 11 | G108: 0.04 | H108: 0.06 | I108: 0.05 | J108: 0.05 | K108: 0.045 | L108: 0.045 | M108: 11 | N108: 0.02 | O108: 0.028 | P108: 0.032 | Q108: 0.037 | R108: 0.045 | S108: 0.053 | T108: 0.02700000256
F109: 9 | G109: 0.07 | H109: 0.07 | I109: 0.075 | J109: 0.08 | K109: 0.08 | L109: 0.08 | M109: 9 | N109: 0.05 | O109: 0.06 | P109: 0.075 | Q109: 0.085 | R109: 0.08 | S109: 0.08 | T109: 0.04800000042
F110: 7 | G110: 0.1 | H110: 0.1 | I110: 0.1 | J110: 0.1 | K110: 0.1 | L110: 0.105 | M110: 7 | N110: 0.1 | O110: 0.11 | P110: 0.11 | Q110: 0.11 | R110: 0.11 | S110: 0.115 | T110: 0.06000000238
F111: 5 | G111: 0.12 | H111: 0.12 | I111: 0.125 | J111: 0.125 | K111: 0.125 | L111: 0.125 | M111: 5 | N111: 0.135 | O111: 0.14 | P111: 0.15 | Q111: 0.155 | R111: 0.15 | S111: 0.14 | T111: 0.07500000298
F112: 3 | G112: 0.2 | H112: 0.195 | I112: 0.19 | J112: 0.19 | K112: 0.19 | L112: 0.185 | M112: 3 | N112: 0.19 | O112: 0.195 | P112: 0.2 | Q112: 0.205 | R112: 0.21 | S112: 0.21 | T112: 0.1140000001
F113: 1 | G113: 0.45 | H113: 0.39 | I113: 0.375 | J113: 0.36 | K113: 0.355 | L113: 0.35 | M113: 1 | N113: 0.5 | O113: 0.46 | P113: 0.42 | Q113: 0.39 | R113: 0.38 | S113: 0.37 | T113: 0.2129999995
F114: -1 | G114: 0.51 | H114: 0.45 | I114: 0.42 | J114: 0.41 | K114: 0.4 | L114: 0.39 | M114: -1 | N114: 0.65 | O114: 0.615 | P114: 0.61 | Q114: 0.6 | R114: 0.53 | S114: 0.48 | T114: 0.1599999964
F115: -3 | G115: 0.34 | H115: 0.33 | I115: 0.33 | J115: 0.32 | K115: 0.32 | L115: 0.32 | M115: -3 | N115: 0.35 | O115: 0.36 | P115: 0.345 | Q115: 0.335 | R115: 0.36 | S115: 0.38 | T115: 0.1279999912
F116: -5 | G116: 0.15 | H116: 0.2 | I116: 0.22 | J116: 0.22 | K116: 0.225 | L116: 0.23 | M116: -5 | N116: 0 | O116: 0.025 | P116: 0.044 | Q116: 0.063 | R116: 0.1 | S116: 0.12 | T116: 0.08999998868
F117: -7 | G117: 0 | H117: 0.02 | I117: 0.03 | J117: 0.048 | K117: 0.052 | L117: 0.055 | M117: -7 | N117: 0 | O117: 0 | P117: 0.001 | Q117: 0.002 | R117: 0.01 | S117: 0.02 | T117: 0.02080000006
F118: -9 | G118: 0 | H118: 0 | I118: 0 | J118: 0.002 | K118: 0.003 | L118: 0.005 | M118: -9 | N118: 0 | O118: 0 | P118: 0 | Q118: 0 | R118: 0 | S118: 0 | T118: 0.001199999941
F123: 温度差正 | G123: =N38 -> 0
F124: 温度差負 | G124: =N39 -> 1
F126: コンクリート版幅 (ｍ) | G126: 正の場合 | H126: 負の場合
F127: 5 | G127: 0.85 | H127: 0.4
F128: 6 | G128: 0.91 | H128: 0.55
F129: 7.5 | G129: 0.95 | H129: 0.73
F130: 8 | G130: 0.95 | H130: 0.78
F131: 10 | G131: 0.96 | H131: 0.9
F132: 12.5 | G132: 0.97 | H132: 0.93
F133: 15 | G133: 0.98 | H133: 0.95
G134: 0.9599999785 | H134: 0.8999999762
